Cogmind - Beta 12 @@@ ROGUE MODE // 2023.03.31 @ 16:24:45 Player: Delirus Result: Destroyed by G-47 Trooper with Particle Gun Performance ------------- Evolutions (0) 0 Regions Visited (2) 400 Robots Destroyed (35) 175 Value Destroyed (685) 685 Prototype IDs (0) 0 Alien Tech Used (0) 0 Bonus (0) 0 TOTAL SCORE: 1260 Bonus ------- None Cogmind --------- Core Integrity 0/250 Matter 244/300 Energy 250/250 System Corruption 0% Temperature Cool (9) Movement Treading (160) Location -10/Mines Parts ------- > --- POWER (1) -------- Ion Engine > --- PROPULSION (2) --- Light Treads Light Treads > --- UTILITY (2) ------ Large Storage Unit Targeting Computer > --- WEAPON (2) ------- Assault Rifle Light Assault Rifle > --- INVENTORY (15) --- Light Nuclear Core Wheel Wheel Improved Heat Sink Structural Scanner Improved Terrain Scanner Seismic Detector EM Pulse Gun Light Assault Rifle Mining Laser Peak State ------------ > --- POWER ------------ Light Nuclear Core > --- PROPULSION ------- Light Treads Light Treads > --- UTILITY ---------- Large Storage Unit Targeting Computer > --- WEAPON ----------- Assault Rifle Light Assault Rifle > --- INVENTORY -------- Ion Engine Light Treads Wheel Improved Heat Sink Structural Scanner Improved Terrain Scanner Seismic Detector EM Pulse Gun Light Assault Rifle Mining Laser [Rating: 10] Favorites ----------- Power Ion Engine Engine Ion Engine Power Core Light Nuclear Core Propulsion Light Treads Treads Light Treads Leg Aluminum Leg Wheel Wheel Utility Large Storage Unit Device Seismic Detector Storage Large Storage Unit Processor Targeting Computer Weapon Assault Rifle Energy Gun EM Pulse Gun Ballistic Gun Assault Rifle Special Weapon Mining Laser Build | -11 -10 -10 ------- Run | Jun Mat Min Slots Evolved . | . . . Power . | . . . Propulsion . | . . . Utility . | . . . Weapon . | . . . Parts Attached 22 | 3 9 10 Power 2 | . . 2 Engine 1 | . . 1 Core 1 | . . 1 Reactor . | . . . Propulsion 5 | 2 1 2 Treads 3 | 1 . 2 Leg . | . . . Wheel 2 | 1 1 . Hover . | . . . Flight . | . . . Utility 3 | 1 1 1 Device 1 | 1 . . Storage 1 | . 1 . Processor 1 | . . 1 Hackware . | . . . Protection . | . . . Artifact . | . . . Weapon 12 | . 7 5 Energy Gun 2 | . 2 . Energy Cannon . | . . . Ballistic Gun 8 | . 4 4 Ballistic Cannon . | . . . Launcher . | . . . Special Weapon 2 | . 1 1 Impact Weapon . | . . . Slashing Weapon . | . . . Piercing Weapon . | . . . Special Melee Weapon . | . . . Unidentified Prototypes . | . . . Parts Lost 6 | . 1 5 Power 1 | . . 1 Propulsion 3 | . 1 2 Utility . | . . . Weapon 2 | . . 2 Highest Loss Streak 2 | . 1 2 To Critical Strikes . | . . . Average Slot Usage (%) 95 | . 98 92 Engine 11 | . 14 8 Treads 16 | . 14 20 Wheel 9 | . 12 6 Device 8 | . 14 . Storage 14 | . 14 14 Processor 5 | . . 13 Energy Gun 1 | . 2 . Ballistic Gun 26 | . 25 27 Naked Turns . | . . . Heaviest Build 30 | 14 30 30 Greatest Support 40 | 10 20 40 Greatest Overweight (x) 2 | 1 2 2 Average Overweight (x) 1 | 1 1 1 Largest Inventory Capacity 15 | 8 15 15 Average Capacity 13 | 8 12 15 Most Carried 12 | 6 10 12 Average Carried 9 | 6 8 9 Final Capacity 15 | 8 15 15 Final Carried 10 | 6 9 10 Class Distribution -------------------- 100% | Mutant Dominant Class ---------------- Mutant | -10/Materials Mutant | -10/Mines Resources | -11 -10 -10 ----------- Run | Jun Mat Min Matter Collected 796 | 159 356 281 Remotely . | . . . Salvage Created 1014 | 89 482 443 Parts 58 | 5 28 25 Haulers Intercepted 1 | . 1 . Recyclers Shooed 1 | 1 . . Parts Field Recycled . | . . . Retrieved Matter . | . . . Parts Self-Destructed . | . . . Prevented . | . . . Kills | -11 -10 -10 ------- Run | Jun Mat Min Combat Hostiles Destroyed 28 | . 14 14 Guns 28 | . 14 14 Classes Destroyed 8 | 2 5 1 Tunneler 3 | 1 . 2 Hauler 1 | . 1 . Recycler 1 | 1 . . Operator 2 | . 2 . Watcher 1 | . 1 . Swarmer 14 | . 8 6 Grunt 13 | . 6 7 Assembled 1 | . . 1 Best Kill Streak 4 | 2 4 3 Combat Bots Only 4 | . 4 3 Max Kills in Single Turn 1 | 1 1 1 Gunslinging . | . . . Exploded . | . . . Melee . | . . . Uniques/NPCs Destroyed . | . . . Combat | -11 -10 -10 -------- Run | Jun Mat Min Damage Taken 1133 | . 457 676 Core 257 | . 73 184 Absorbed by Shields . | . . . Core Remaining (%) 100 | 100 . . Volleys Fired 136 | 4 67 65 Largest 2 | 2 2 2 Hottest 100 | 60 100 100 Shots Fired 252 | 8 124 120 Gun 240 | 8 122 110 Cannon . | . . . Launcher . | . . . Special 12 | . 2 10 Kinetic 224 | 4 110 110 Thermal 20 | 4 6 10 Explosive . | . . . Electromagnetic 8 | . 8 . Robot Hit Streak 13 | 3 13 10 Robot Miss Streak 7 | 1 7 4 Penetration Max . | . . . Secondary Targets 3 | . 1 2 Max Gunslinging Chain 1 | . 1 1 Shots Hit Robots 152 | 5 72 75 Core Hits 63 | 3 30 30 Critical Kills . | . . . Critical Parts Destroyed 1 | . . 1 Critical Strikes 2 | . 1 1 Destroy 1 | . . 1 Corrupt 1 | . 1 . Melee Attacks . | . . . Impact . | . . . Slashing . | . . . Piercing . | . . . Sneak Attacks . | . . . Combat Hostiles . | . . . Follow-up Attacks . | . . . Damage Inflicted 1627 | 62 773 792 Guns 1627 | 62 773 792 Cannons . | . . . Explosions . | . . . Melee . | . . . Ramming . | . . . Kinetic 1518 | 27 699 792 Thermal 57 | 35 22 . Explosive . | . . . Electromagnetic 52 | . 52 . Impact . | . . . Slashing . | . . . Piercing . | . . . Highest Corruption . | . . . Average Corruption . | . . . Corruption Purged . | . . . Corruption Blocked . | . . . Overload Shots . | . . . Overflow Damage . | . . . Projectiles . | . . . Explosions . | . . . Melee . | . . . Knockbacks . | . . . Impact . | . . . Kinetic . | . . . Secondary . | . . . Self-Inflicted Damage . | . . . Shots . | . . . Rammed . | . . . Targets Rammed . | . . . Kicked . | . . . Crushed . | . . . Highest Temperature 82 | 20 20 82 Average Temperature 16 | 20 7 19 Received Heat Transfer 360 | . 126 234 Siege Activations . | . . . Robots Corrupted . | . . . Combat Hostiles . | . . . Parts Fried . | . . . Impact Corruptions . | . . . Robots Melted . | . . . Combat Hostiles . | . . . Parts Melted . | . . . Heat Transferred 125 | 75 50 . Parts Sabotaged . | . . . Parts Stolen . | . . . Parts Stripped . | . . . Power Chain Reactions . | . . . Missiles Intercepted . | . . . Alert | -11 -10 -10 ------- Run | Jun Mat Min Peak Influence 353 | 10 353 237 Initial 87 | . 6 87 Average 149 | 6 163 135 Maximum Alert Level 1 | . 1 1 Low Security (%) 75 | 100 70 81 Level 1 24 | . 29 18 Level 2 . | . . . Level 3 . | . . . Level 4 . | . . . Level 5 . | . . . High Security . | . . . Max Security . | . . . Squads Dispatched 5 | . 5 . Investigation 3 | . 3 . Extermination . | . . . Reinforcement 2 | . 2 . Assault . | . . . Garrison . | . . . Intercept . | . . . Searches Triggered . | . . . Construction Impeded . | . . . Haulers Reinforced . | . . . Active Scanning Responses . | . . . Cargo Convoy Interrupts . | . . . Stealth | -11 -10 -10 --------- Run | Jun Mat Min Distress Signals 3 | . 3 . Communications Jammed . | . . . Distress Signals . | . . . Times Spotted 47 | . 28 19 Peak Tracking Total 5 | . 5 3 Tactical Retreats 2 | . 1 1 Traps | -11 -10 -10 ------- Run | Jun Mat Min Traps Triggered 1 | . 1 . Indirectly . | . . . Trap Hack Attempts . | . . . Triggered . | . . . Disarmed . | . . . Reprogrammed . | . . . Reused . | . . . Traps Extracted . | . . . Installed . | . . . Triggered . | . . . Machines | -11 -10 -10 ---------- Run | Jun Mat Min Machines Disabled . | . . . Max in Single Turn . | . . . Machines Repaired . | . . . Machines Sabotaged . | . . . Overloaded Fab Kills . | . . . Hacking | -11 -10 -10 --------- Run | Jun Mat Min Machines Accessed 7 | . 6 1 Terminals 5 | . 4 1 Fabricators . | . . . Repair Stations . | . . . Recycling Units 2 | . 2 . Scanalyzers . | . . . Garrison Access . | . . . Total Hacks 18 | . 13 5 Successful 9 | . 7 2 Failed 9 | . 6 3 Catastrophic . | . . . Database Lockouts . | . . . Manual 9 | . 5 4 Terminals 15 | . 10 5 Fabricators . | . . . Repair Stations . | . . . Recycling Units 3 | . 3 . Scanalyzers . | . . . Garrison Access . | . . . Terminal Hacks 7 | . 5 2 Robot Analysis 1 | . . 1 Alert Level 1 | . 1 . Locate Traps 1 | . 1 . Hauler Manifests 1 | . 1 . Zone Layout 3 | . 2 1 Fabricator Hacks . | . . . Repair Station Hacks . | . . . Recycling Unit Hacks . | . . . Scanalyzer . | . . . Garrison Access Hacks . | . . . Unauthorized Hacks 2 | . 2 . Terminals . | . . . Fabricators . | . . . Repair Stations . | . . . Recycling Units 2 | . 2 . Tunnel 2 | . 2 . Scanalyzers . | . . . Garrison Access . | . . . Data Cores Recovered . | . . . Used . | . . . Hacking Detections 5 | . 4 1 Full Trace Events . | . . . Feedback Events . | . . . Feedback Blocked . | . . . Robot Schematics Acquired . | . . . Robots Built . | . . . Authchips . | . . . Time . | . . . Total Robot Build Rating . | . . . Part Schematics Acquired . | . . . Parts Built . | . . . Authchips . | . . . Time . | . . . Total Part Build Rating . | . . . Parts Repaired . | . . . Time . | . . . Parts Recycled . | . . . Recycled Matter . | . . . Retrieved Matter . | . . . Retrieved Components . | . . . Parts Scanalyzed . | . . . Part Schematics Acquired . | . . . Parts Damaged . | . . . Bothacking | -11 -10 -10 ------------ Run | Jun Mat Min Used RIF Installer . | . . . Robots Hacked . | . . . Non-combat . | . . . Combat . | . . . Robot Hacks Applied . | . . . Relay Couplers Released . | . . . Fabnet Peak Effective % . | . . . Robots Rewired . | . . . Allies Hacked . | . . . Hacks Repelled . | . . . Allies | -11 -10 -10 -------- Run | Jun Mat Min Total Allies . | . . . Largest Group . | . . . Highest-Rated Group . | . . . Highest-Rated Ally . | . . . Total Orders . | . . . Ally Attacks . | . . . Total Damage . | . . . Kills . | . . . Allies Corrupted . | . . . Allies Melted . | . . . Intel | -11 -10 -10 ------- Run | Jun Mat Min Robot Analysis Total 1 | . . 1 Derelict Logs Recovered . | . . . Drone Launches . | . . . Drone Recoveries . | . . . Exploration | -11 -10 -10 ------------- Run | Jun Mat Min Turns Passed 1682 | 23 953 706 Spaces Moved 994 | 7 632 355 Core . | . . . Treads 172 | . 40 132 Legs . | . . . Wheels 822 | 7 592 223 Hover . | . . . Flight . | . . . Fastest Speed 95 | 95 95 110 Average Speed 119 | 95 113 131 Slowest Speed 240 | 95 240 240 Overloaded Moves . | . . . Propulsion Burnouts . | . . . Robots Hopped . | . . . Cave-ins Triggered . | . . . Exploration Rate (%) 50 | 2 95 53 Regions Visited 2 Branch Regions 1 Pre-discovered Areas 3 | . 2 1 Known Exits Taken . | . . . Unknown Exits Taken 2 | 1 1 . Scrap Searched 1 | . . 1 Spaces Dug 2 | . 2 . Terrain Destroyed 3 | . 2 1 Melee . | . . . Projectile 3 | . 2 1 AOE . | . . . Terrain Rammed . | . . . Walls Destroyed . | . . . Machines Disabled . | . . . Actions | -11 -10 -10 --------- Run | Jun Mat Min Total 1225 | 13 750 462 Wait 59 | . 32 27 Move 992 | 6 631 355 Hop . | . . . Pick Up 12 | . 7 5 Fast Attach 2 | 1 . 1 Attach 5 | . 1 4 Detach . | . . . Swap 15 | 2 8 5 Drop 4 | . 4 . Fire 136 | 4 67 65 Melee . | . . . Ram . | . . . Kick . | . . . Crush . | . . . Escape Stasis . | . . . Rewire . | . . . Trap . | . . . Miscellaneous . | . . . Route ------- -11/Junkyard -10/Materials (discovered 3 exits: [*Mat x2] / *Min) -10/Mines (discovered 2 exits: [*Mat x2]) History --------- Turn | Location | Event 17 | -11/Junkyard | Discovered new exit (range 3) 24 | -11/Junkyard | Entered Materials 204 | -10/Materials | Discovered new exit (range 7) 303 | -10/Materials | Build established: Mutant 590 | -10/Materials | Discovered new exit (range 9) 695 | -10/Materials | Discovered new exit (range 8) 977 | -10/Materials | Entered Mines 978 | -10/Mines | Learned location of Storage (-8) 1101 | -10/Mines | Discovered new exit (range 6) 1127 | -10/Mines | Core integrity fell below 50% 1373 | -10/Mines | Excavation squad dispatched 1373 | -10/Mines | A large section of the Mines collapsed 1586 | -10/Mines | Core integrity fell below 20% 1643 | -10/Mines | Discovered new exit (range 16) 1683 | -10/Mines | Destroyed by G-47 Trooper with Particle Gun Last Messages --------------- 01472_ Acquired 36 matter. 01485_ G-34 Mercenary destroyed. 01486_ Acquired 44 matter. 01488_ Acquired 12 matter. 01491_ T-07 Excavator is excavating. 01510_ U-05 Engineer lays Concrete. 01510_ T-07 Excavator is excavating. 01513_ K-01 Serf collects debris. 01513_ Acquired Wheel. 01518_ K-01 Serf collects debris. 01588_ as-08381 destroyed. 01591_ Acquired 8 matter. 01593_ K-01 Serf collects debris. 01619_ S-10 Pest suffers critical hit (Destroy). 01619_ Destroyed Lgt. Ion Engine. 01628_ S-10 Pest destroyed. 01628_ Switching to secondary target: S-10 Pest. 01631_ Destroyed Flight Unit. 01636_ S-10 Pest destroyed. 01643_ EXIT=FOUND Map ----- +----------------------------------------------------+ | ????????????????????????????????????? | | ????????????????????????????????????? | | ????????????????????????????????????? | | ????????????????????????????????????? | | ????????????????????????????????????? | | ????????????????????????????????????? | | ????????????????????????????????????? | | ????????????????????????????????????? | | ????????????????????????????????????? | | ????????????????????????????????????? | | ????????????????????????????????????? | | ????????????????????????????????????? | | ??????????????????????????? ""??????? | | ??????????????????????????? ??????? | | ??????????????????????????? ??????? | | ??????????????????????????? < ??????? | | ??????????????????????????? ??????? | | ??????????????????????????? ??????? | | ???????????????????????????# #?????? | | ???????????????????????????#*%#?????? | | ???????????????????????????# [#?????? | | ???????????????????????????#%[#?????? | | ????????????????????????####% #?????? | | ???????????????????????? #?????? | | ????????????????????????#g## ###???? | | ????????????????????????#@## ##??? | | ????# #?????????????????# ## #??? | | ????# #?????????????????# ## ##?? | | ??### #?????????????????# ## #?? | | ### ##????????????????# ## #?? | | ##???????????????#g## #?? | | ##??????????????# ##?? | | ### #??????????????##### ##??? | | ??## ##?????????????????## #???? | | ???### ##?????????????????# #???? | | ?????## ##????????????????# #???? | | ??????## ##????????????#### #???? | | ???????## #????????????# #???? | | ????????## ###??????????# #####???? | | ?????????# ??????????## #???????? | | #######??### ####???????## ##??????? | | """ #### ###" #####??## ####???? | | """ #*=%==* #### % #???? | | *""" ###### " % %##### #???? | | !=%% ## ## ##### *%##???# #???? | | ==[ ## ## #???### =!!#????# #???? | | ######## ######?????#% %##????# #???? | | ???????# #??????????#% ##?????# ##??? | | ?????### #??????????# #?????## ##?? | | ????## ##?????????# #?????# #?? | +----------------------------------------------------+ Best States ------------- Heat Dissipation 25 Energy Generation 10 Energy Capacity 250 Matter Stores 300 Matter Capacity 300 Sight Range 16 Terrain Scan Density 10 Evasion (%) 41 Targeting Accuracy 5 Recoil Reduction 2 Item Schematics ----------------- None Robot Schematics ------------------ None Fabricated ------------ Nothing Alien Tech Used ----------------- None Achievements -------------- None Challenges ------------ None Game ------ Seed RegenerativePhasingLance Manual? 0 Play Time 00:15:58 Cumulative 110.7 hours Start 2023.03.31 @ 15:51:45 End 2023.03.31 @ 16:24:45 Sessions 1 Manual Loads 0 Difficulty Rogue Special Mode None Game No. 74 Rogue 74 Adventurer 0 Explorer 0 Win Type - Total 3 Types 2/0/0/1/0/0/0/0/0 Lore% 43 Gallery% 59 Achievement% 57 Wizard Run 0 Options --------- ASCII 0 Keyboard 0 Movement Numpad Keybinds 0 Fullscreen 2 Font 12/Smallcaps Map View 83x54 Tactical HUD 1 Map Filters NONE Filters NONE Steam 1 RUN: 9a45bcc7-ed88-4184-bdd2-9232992714a7